bitfinex/quotes_ETHUSD_20250715
["timestamp","ask_amount","ask_price","bid_price","bid_amount"]
[1752580188399,10.0,2972.0,2971.9,3.36485076]
[1752580188904,0.002,2972.1,2972.0,3.36473755]
[1752580189110,10.002,2972.1,2972.0,3.36473755]
[1752580189298,10.002,2972.1,2972.0,3.80863755]
[1752580189686,0.002,2972.1,2972.0,3.80863755]
[1752580191688,0.002,2972.1,2972.0,3.36473755]
[1752580193425,0.002,2972.1,2972.0,4.71291453]
[1752580196008,6.95923836,2972.1,2972.0,8.48673755]
[1752580196208,6.52863836,2972.1,2972.0,8.48673755]
[1752580197352,0.002,2972.1,2972.0,8.48673755]
[1752580198520,0.002,2972.1,2972.0,8.93063755]
[1752580199711,0.002,2972.1,2972.0,8.48673755]
[1752580199911,0.002,2972.1,2972.0,10.24362453]
[1752580203937,1e-08,2972.1,2972.0,10.24362453]
[1752580206560,1e-08,2972.2,2972.1,3.36462433]
[1752580206729,1e-08,2972.2,2972.1,3.39827057]
[1752580206930,1e-08,2972.2,2972.1,3.85147057]
[1752580207231,1e-08,2972.2,2972.1,5.6706733]
[1752580208072,1e-08,2972.2,2972.1,6.2206733]
[1752580209925,1e-08,2972.2,2972.1,6.18702706]
[1752580211248,1e-08,2972.2,2972.1,6.2206733]
[1752580219054,1e-08,2972.2,2972.1,6.18702706]
[1752580219869,1e-08,2972.2,2972.1,6.2206733]
[1752580220207,1e-08,2972.2,2972.1,6.18702706]
[1752580221000,1e-08,2972.2,2972.1,6.2206733]
[1752580225603,0.002,2972.8,2972.6,3.36404613]
[1752580225758,0.002,2972.8,2972.7,8.83108453]
[1752580226096,0.002,2972.8,2972.7,8.79744508]
[1752580226470,0.002,2973.0,2972.8,3.36383207]
[1752580226656,0.002,2973.0,2972.9,8.83085595]
[1752580227024,0.002,2973.0,2972.9,10.07168757]
[1752580230407,0.002,2973.0,2972.9,11.09288757]
[1752580230885,1e-08,2973.0,2972.9,11.09288757]
[1752580232058,0.002,2973.7,2973.3,0.55]
[1752580232256,0.042,2973.9,2973.8,3.36270092]
[1752580232515,0.042,2973.9,2973.8,9.13147086]
[1752580232661,0.5011,2973.9,2973.8,9.13147086]
[1752580233001,0.5011,2973.9,2973.8,8.79520077]
[1752580233155,0.042,2973.9,2973.8,8.79520077]
[1752580235693,0.042,2973.9,2973.8,9.26640077]
[1752580237060,0.7745,2974.4,2974.3,3.36213562]
[1752580237326,0.7086,2975.0,2974.8,3.36157052]
[1752580237484,0.2495,2975.0,2974.8,8.79307037]
[1752580237887,0.8347,2974.9,2974.8,8.79307037]
[1752580238131,1.2938,2974.9,2974.8,8.79307037]
[1752580240415,1.2938,2974.9,2974.8,8.79207037]
[1752580241013,1.2938,2974.9,2974.8,3.67607037]
[1752580241212,1.2938,2974.9,2974.8,8.79207037]
[1752580243943,1.2938,2974.9,2974.8,3.67607037]
[1752580244145,18.95001836,2974.9,2974.8,0.31449985]
[1752580245146,10.8317,2974.8,2974.6,3.36174814]
[1752580245443,10.8317,2974.8,2974.4,8.47798204]
[1752580245444,0.8317,2974.7,2974.4,5.116]
[1752580245642,7.35833836,2974.5,2974.4,8.47802259]
[1752580245815,7.81743836,2974.5,2974.4,8.47802259]
[1752580246224,7.81743836,2974.5,2974.2,3.36222693]
[1752580246521,0.4591,2974.4,2974.3,3.36213159]
[1752580247086,0.4591,2974.4,2974.3,8.47813159]
[1752580247262,1.2245,2974.4,2974.2,3.36220649]
[1752580247472,6.52663836,2974.3,2974.2,3.36220649]
[1752580247619,6.98573836,2974.3,2974.2,3.36220649]
[1752580247962,0.4591,2974.3,2974.2,3.36220649]
[1752580248115,0.4591,2974.3,2974.2,4.54626243]
[1752580248750,0.7654,2974.4,2974.3,3.36213562]
[1752580248934,0.7819,2974.8,2974.7,3.36168353]
[1752580249247,0.7819,2974.8,2974.7,3.67503852]
[1752580249422,1.241,2974.8,2974.7,3.67503852]
[1752580249811,1.241,2974.8,2974.7,0.31335499]
[1752580250055,1.241,2974.8,2974.7,3.67503852]
[1752580253149,1.241,2974.8,2974.7,0.31335499]
[1752580253353,10.4591,2974.8,2974.7,0.31335499]
[1752580253554,16.87062932,2974.8,2974.7,0.31335499]
[1752580253754,20.23219984,2974.8,2974.7,0.31335499]
[1752580254060,0.7819,2974.6,2974.2,3.36218555]
[1752580254355,0.7819,2974.3,2973.9,5.115]
[1752580254559,6.52663836,2974.0,2973.9,8.47757589]
[1752580254757,6.98573836,2974.0,2973.9,8.47757589]
[1752580256361,6.98573836,2974.0,2973.9,8.47857589]
[1752580256928,0.4591,2974.2,2974.1,3.36236172]
[1752580257645,0.7819,2974.3,2974.2,3.36224867]
[1752580257840,0.7819,2974.3,2974.2,8.47724867]
[1752580258966,10.4591,2974.5,2974.2,8.47724867]
[1752580258967,11.2307,2974.5,2974.4,3.36202259]
[1752580259457,0.7716,2974.5,2974.4,3.36202259]
[1752580259861,1.2107,2974.7,2974.6,3.36179654]
[1752580260062,0.7765,2974.7,2974.6,3.36179654]
[1752580260773,1.2107,2974.7,2974.6,3.36179654]
[1752580261074,0.8627,2974.9,2974.8,3.36157052]
[1752580261382,1.2969,2974.9,2974.8,3.36157052]
[1752580264247,1.2969,2974.9,2974.5,3.36185449]
[1752580264449,17.78293836,2974.8,2974.6,3.36179476]
[1752580264650,16.96083836,2974.7,2974.6,3.36179476]
[1752580264892,10.0,2974.6,2974.5,3.3618693]
[1752580265099,15.9371,2974.8,2974.7,3.36168353]
[1752580265350,16.3713,2974.8,2974.7,3.36168353]
[1752580265844,10.0,2974.7,2974.3,5.115]
[1752580266050,6.52663836,2974.4,2974.3,8.47709437]
[1752580266250,6.96083836,2974.4,2974.3,8.79196474]
[1752580267147,16.96083836,2974.4,2974.3,0.31487037]
[1752580267351,24.5829222,2974.4,2974.3,0.31487037]
[1752580267692,22.88683836,2974.4,2974.3,0.31487037]
[1752580268166,22.88683836,2974.4,2974.3,3.67715465]
[1752580268565,22.88683836,2974.4,2974.3,3.67718334]
[1752580268763,22.88683836,2974.4,2974.3,0.31504772]
[1752580269088,22.88683836,2974.4,2974.3,0.31504765]
[1752580270363,13.36221905,2974.3,2973.9,0.001]
[1752580270568,6.52663836,2974.0,2973.9,0.001]
[1752580270768,11.64163836,2974.0,2973.9,0.001]
[1752580271193,22.89563836,2974.0,2973.9,0.001]
[1752580276600,56.25811314,2974.0,2973.9,0.001]
[1752580278704,52.89563836,2974.0,2973.9,0.001]
[1752580278902,52.89563836,2974.0,2973.9,3.36358784]
[1752580278903,10.8198,2974.0,2973.9,3.36358784]
[1752580279080,15.9348,2974.0,2973.9,3.36358784]
[1752580279690,10.8198,2974.0,2973.9,3.36358784]
[1752580279876,15.115,2974.0,2973.9,3.36358784]
[1752580280280,10.0,2974.0,2973.9,3.36358784]
[1752580283104,10.4342,2974.0,2973.9,0.001]
[1752580283412,10.4342,2974.0,2973.9,3.36358784]
[1752580283699,10.4342,2974.0,2973.9,0.001]
[1752580283700,16.3431,2974.0,2973.9,0.001]
[1752580284400,15.9089,2974.0,2973.9,0.001]
[1752580284601,16.3431,2974.0,2973.9,3.36358784]
[1752580285000,15.115,2974.0,2973.9,3.36358784]
[1752580285597,10.0,2974.0,2973.9,3.36358784]
[1752580293038,10.0,2974.1,2974.0,3.36247478]
[1752580296504,10.0,2974.1,2974.0,3.82657478]
[1752580296807,10.0,2974.2,2974.1,3.36235005]
[1752580297007,6.52663836,2974.5,2974.2,3.36223673]
[1752580297008,10.0,2974.3,2974.2,3.36223673]
[1752580300911,10.002,2974.3,2974.2,3.36223673]
[1752580302144,6.52863836,2974.3,2974.2,3.36223673]
[1752580304652,10.0,2974.2,2973.9,5.115]
[1752580304859,16.52663836,2974.0,2973.9,0.001]
[1752580305319,17.00133836,2974.0,2973.9,0.001]
[1752580307728,10.0,2973.9,2973.1,3.36347428]
[1752580307929,6.52663836,2973.3,2973.2,5.114]
[1752580308659,6.52663836,2973.3,2973.2,8.47737952]
[1752580308869,0.4747,2973.7,2973.6,3.36292709]
[1752580309157,11.64063836,2973.8,2973.7,3.362814]
[1752580309363,6.52663836,2973.8,2973.7,3.362814]
[1752580310362,7.00133836,2973.8,2973.6,3.3629182]
[1752580310548,0.4747,2973.7,2973.5,8.47702314]
[1752580310756,6.52663836,2973.6,2973.5,8.47702314]
[1752580311635,6.52663836,2973.6,2973.5,3.36302314]
[1752580311964,6.52663836,2973.6,2973.5,8.47702314]
[1752580312981,15.114,2973.9,2973.8,3.36270092]
[1752580313134,10.0,2973.9,2973.8,3.36270092]
[1752580313334,15.114,2973.9,2973.8,3.36270092]
[1752580314134,10.0,2973.9,2973.8,3.36270092]
[1752580316891,0.002,2974.3,2974.2,3.36224867]
[1752580317093,5.116,2974.3,2974.2,3.36224867]
[1752580317597,0.002,2974.3,2974.2,3.36224867]
[1752580317966,0.002,2974.3,2974.2,4.08111864]
[1752580318266,0.002,2974.3,2974.2,4.57884112]
[1752580318785,0.002,2974.3,2974.2,4.54521864]
[1752580320282,0.002,2974.3,2974.2,4.85995169]
[1752580320588,0.002,2974.3,2974.2,8.79098172]
[1752580320748,0.4422,2974.3,2974.2,8.79098172]
[1752580320949,0.4422,2974.3,2974.2,3.67698172]
[1752580322988,0.002,2974.3,2974.2,3.67698172]
[1752580323802,0.002,2974.3,2974.2,3.7106042]
[1752580323978,0.002,2974.3,2974.2,4.92919972]
[1752580324305,0.002,2974.3,2974.2,4.89557724]
[1752580324602,0.002,2974.3,2974.2,5.35807724]
[1752580325110,0.002,2974.3,2974.2,5.39169972]
[1752580325316,0.002,2974.7,2974.6,3.36179654]
[1752580325460,0.002,2974.7,2974.6,9.46189946]
[1752580325871,0.002,2974.7,2974.6,9.92439946]
[1752580326803,0.002,2974.7,2974.6,9.92410653]
[1752580327105,1e-08,2974.7,2974.6,9.92410653]
[1752580328528,1e-08,2974.7,2974.6,10.47410653]
[1752580332158,1e-08,2974.7,2974.6,9.46060653]
[1752580332331,1e-08,2974.7,2974.6,9.92310653]
[1752580332539,1e-08,2974.7,2974.6,10.47310653]
[1752580336061,1e-08,2974.7,2974.6,9.45960653]
[1752580338912,1e-08,2974.7,2974.6,9.92210653]
[1752580340327,1e-08,2974.7,2974.6,9.45960653]
[1752580340658,1e-08,2974.7,2974.6,10.47210653]
[1752580341721,1e-08,2974.7,2974.6,10.15766641]
[1752580342058,1e-08,2974.7,2974.6,10.4713865]
[1752580344819,1e-08,2974.9,2974.8,3.91157052]
[1752580345019,1e-08,2974.9,2974.8,10.75318984]
[1752580345213,1e-08,2974.9,2974.8,11.18207414]
[1752580345567,1e-08,2975.1,2975.0,3.91134453]
[1752580345734,1e-08,2975.1,2975.0,9.36967806]
[1752580345916,1e-08,2975.1,2975.0,9.79856462]
[1752580346121,1e-08,2975.1,2975.0,11.25289432]
[1752580350402,1e-08,2975.1,2975.0,10.93917423]
[1752580352189,1e-08,2975.1,2975.0,5.36567423]
[1752580352413,1e-08,2975.1,2975.0,10.47567423]
[1752580352685,1e-08,2975.1,2975.0,10.90927423]
[1752580354792,1e-08,2975.1,2975.0,10.47567423]
[1752580354968,1e-08,2975.1,2975.0,9.92467423]
[1752580356084,0.46780001,2975.1,2975.0,3.36134453]
[1752580356595,0.46780001,2975.1,2975.0,8.47034453]
[1752580360203,0.46780001,2975.1,2975.0,3.36134453]
[1752580360384,0.46780001,2975.1,2975.0,8.47034453]
[1752580361510,1e-08,2975.1,2975.0,8.47034453]
[1752580361681,1e-08,2975.1,2975.0,9.65352387]
[1752580364915,0.46780001,2975.1,2975.0,8.47034453]
[1752580365208,0.46780001,2975.1,2974.5,3.36289184]
[1752580365209,1.29560001,2975.1,2974.5,3.36289184]
[1752580365432,1.29560001,2975.1,2974.5,3.36290956]
[1752580365433,6.52663836,2974.6,2974.5,3.36290956]
[1752580365625,8.4708022,2974.6,2974.5,0.001]
[1752580365832,21.00889874,2974.6,2973.9,0.001]
[1752580365982,6.52663836,2974.1,2974.0,3.36238037]
[1752580366170,6.99443836,2974.1,2974.0,3.36238037]
[1752580366371,6.99443836,2974.1,2973.9,3.36357004]
[1752580366610,1.2915,2974.0,2973.9,5.11]
[1752580366809,1.2915,2974.0,2973.9,8.47258784]
[1752580367013,0.8237,2974.0,2973.9,3.36358784]
[1752580367612,0.7693,2974.4,2974.3,3.36213562]
[1752580368016,1.2371,2974.4,2974.3,3.36213562]
[1752580368318,0.7693,2974.4,2974.3,3.36213562]
[1752580368486,1.2578,2974.6,2974.5,3.36190956]
[1752580368897,17.78443836,2974.6,2974.5,3.36190956]
[1752580370022,17.28553836,2974.9,2974.8,3.36157052]
[1752580370226,7.75333836,2974.9,2974.8,3.36157052]
[1752580370520,17.75333836,2974.9,2974.8,3.36157052]
[1752580372113,10.7589,2974.9,2974.8,3.36157052]
[1752580372505,11.2267,2974.9,2974.8,3.36157052]
[1752580373230,10.0,2974.9,2974.8,8.47157052]
[1752580378304,1e-08,2975.1,2974.9,3.36145752]
[1752580378507,1e-08,2975.1,2975.0,8.47034453]
[1752580380824,0.44830001,2975.1,2975.0,8.47034453]
[1752580382127,1e-08,2975.1,2975.0,8.47034453]
[1752580383922,0.44830001,2975.1,2975.0,8.47034453]
[1752580384125,1e-08,2975.1,2975.0,8.47034453]
[1752580385947,1e-08,2975.1,2975.0,10.32185724]
[1752580386254,1e-08,2975.1,2975.0,9.77185724]
[1752580386615,1e-08,2975.1,2975.0,10.23065724]
[1752580387227,1e-08,2975.1,2975.0,10.78065724]
[1752580391689,0.04,2975.9,2975.8,3.36044088]
[1752580391871,0.4883,2975.9,2975.8,8.46944088]
[1752580394478,0.04,2975.9,2975.8,8.46944088]
[1752580395177,0.4883,2975.9,2975.8,8.46944088]
[1752580398582,0.04,2975.9,2975.8,8.46944088]
[1752580399881,0.04,2975.9,2975.8,9.65243939]
[1752580401084,0.04,2975.9,2975.8,10.20243939]
[1752580401262,0.04,2975.9,2975.8,10.66123939]
[1752580402490,1e-08,2975.9,2975.8,10.66123939]
[1752580402660,0.002,2976.3,2976.2,3.35998924]
[1752580402866,0.002,2976.3,2976.2,8.46698924]
[1752580403091,0.002,2976.3,2976.2,9.64969731]
[1752580403565,0.002,2976.3,2976.2,10.10849731]
[1752580404511,1e-08,2976.3,2976.2,10.10849731]
[1752580405563,1e-08,2976.3,2976.2,5.55149731]
[1752580405860,1e-08,2976.3,2976.2,5.1262972]
[1752580406187,1e-08,2976.3,2976.2,10.65849731]
[1752580410029,1e-08,2976.3,2976.2,5.09269731]
[1752580410308,1e-08,2976.3,2976.2,10.66849731]
[1752580412028,6.56663836,2977.9,2977.7,3.35823805]
[1752580412169,6.56663836,2977.9,2977.5,3.35852225]
[1752580412170,6.52663836,2977.6,2977.5,3.35852225]
[1752580412369,6.52663836,2977.6,2976.6,0.50339537]
[1752580412370,6.99383836,2977.6,2976.3,1.06684973]
[1752580412630,0.97259335,2977.5,2976.3,5.21610091]
[1752580412770,6.52663836,2976.7,2976.6,3.35953772]
[1752580412969,6.52663836,2976.7,2976.6,8.50553772]
[1752580413208,6.99383836,2976.7,2976.6,8.50553772]
[1752580413706,0.4672,2976.7,2976.6,8.50553772]
[1752580413914,0.4672,2977.4,2977.2,3.35886067]
[1752580414086,10.4672,2977.4,2977.3,3.35874785]
[1752580415088,11.2387,2977.4,2977.3,3.35874785]
[1752580415495,1.2387,2977.4,2977.3,3.35874785]
[1752580415695,7.76533836,2977.4,2977.3,3.35874785]
[1752580416094,17.76533836,2977.4,2977.3,3.35874785]
[1752580417013,0.7715,2977.4,2977.3,3.35874785]
[1752580417347,0.4672,2977.4,2977.3,3.35874785]
[1752580417488,0.002,2977.5,2977.4,3.35863505]
[1752580418012,0.002,2977.5,2977.4,3.3922214]
[1752580418529,0.002,2977.5,2977.4,3.35863505]
[1752580419311,0.002,2977.5,2977.4,8.50563505]
[1752580419518,0.002,2977.5,2977.4,10.02795941]
[1752580420143,0.04,2977.9,2977.8,4.14758389]
[1752580420425,0.04,2977.9,2977.8,10.09976536]
[1752580420581,0.04,2977.9,2977.8,9.84258389]
[1752580421229,0.04,2977.9,2977.8,8.50318389]
[1752580421432,1.2921,2977.9,2977.8,3.35818389]
[1752580421722,1.94876384,2977.9,2977.6,3.35830997]
[1752580421909,6.52663836,2977.7,2977.6,3.3583901]
[1752580422229,6.99383836,2977.7,2977.6,3.3583901]
[1752580423300,6.99383836,2977.7,2977.5,3.35851622]
[1752580423494,0.4672,2977.6,2977.4,8.50258284]
[1752580423695,0.8307,2977.5,2976.8,4.13882195]
[1752580423896,0.4672,2977.6,2976.6,3.35951541]
[1752580423897,6.52663836,2977.0,2976.6,3.35951541]
[1752580424097,7.35733836,2977.0,2976.9,3.35919916]
[1752580424728,7.82453836,2977.0,2976.9,3.35919916]
[1752580425027,1.2979,2977.0,2976.9,3.35919916]
[1752580425389,1.2979,2977.0,2976.3,5.20629871]
[1752580425619,0.8307,2977.0,2976.9,3.35919916]
[1752580426208,1.2979,2977.0,2976.9,3.35919916]
[1752580428632,0.4672,2977.0,2976.9,3.35919916]
[1752580429344,0.7603,2977.2,2977.0,3.35901994]
[1752580429552,0.7603,2977.2,2977.1,3.35897349]
[1752580430422,1.2275,2977.2,2977.1,3.35897349]
[1752580431637,6.3645,2977.2,2977.1,3.35897349]
[1752580431963,0.4672,2977.2,2977.1,3.35897349]
[1752580432878,10.0,2977.3,2977.2,3.35886067]
[1752580433179,10.4672,2977.3,2977.2,3.35886067]
[1752580435440,10.4672,2977.3,2977.1,3.35894038]
[1752580435441,21.61018158,2977.3,2977.1,3.35894038]
[1752580435640,11.38112662,2977.3,2977.2,3.35886067]
[1752580435863,11.38112662,2977.3,2977.1,3.35892303]
[1752580436078,11.38112662,2977.3,2977.2,3.35886067]
[1752580436580,11.38112662,2977.3,2977.1,3.35890326]
[1752580436787,11.38112662,2977.3,2977.2,3.35886067]
[1752580436956,15.134,2977.3,2977.2,3.35886067]
[1752580437357,15.6012,2977.3,2977.2,3.35886067]
[1752580437571,10.0,2977.3,2977.2,3.35886067]
[1752580437885,15.6012,2977.3,2977.2,3.35886067]
[1752580438245,15.134,2977.3,2977.2,3.35886067]
[1752580438566,1.2986,2977.6,2977.1,3.35890326]
[1752580438745,10.0,2977.4,2977.3,3.35874785]
[1752580439679,0.4672,2977.5,2977.4,3.35863505]
[1752580439984,0.8314,2977.6,2977.5,3.35852225]
[1752580440194,16.4343,2977.6,2977.5,3.35852225]
[1752580440779,15.134,2977.6,2977.5,3.35852225]
[1752580441142,10.0,2977.6,2977.5,3.35852225]
[1752580441684,0.002,2977.7,2977.6,3.35840945]
[1752580441884,0.002,2977.7,2977.6,3.39199354]
[1752580442085,0.002,2977.7,2977.6,3.35840945]
[1752580442390,0.4709,2977.7,2977.6,3.35840945]
[1752580444083,15.6029,2977.7,2977.6,3.35840945]
[1752580444294,16.3677,2977.7,2977.6,3.35840945]
[1752580445760,15.134,2977.7,2977.6,3.35840945]
[1752580447051,10.002,2977.7,2977.6,3.35840945]
[1752580447950,10.002,2977.7,2977.6,3.67265919]
[1752580448794,0.002,2977.7,2977.6,3.67265919]
[1752580448978,0.002,2977.7,2977.6,3.70624328]
[1752580449172,0.002,2977.7,2977.6,4.83014273]
[1752580449995,0.002,2977.7,2977.6,4.79655864]
[1752580450360,0.002,2977.7,2977.6,4.79654066]
[1752580450876,0.002,2977.7,2977.6,5.22444066]
[1752580452280,0.002,2977.7,2977.6,5.80802475]
[1752580452484,0.002,2977.7,2977.6,5.77444066]
[1752580452692,0.002,2977.7,2977.6,5.80802475]
[1752580453080,0.04,2977.9,2977.8,3.35818389]
[1752580453396,0.04,2977.9,2977.8,10.53700628]
[1752580453598,1e-08,2977.9,2977.8,11.48132445]
[1752580459195,0.2495,2978.7,2978.6,3.35728194]
[1752580459382,0.2495,2978.7,2978.6,9.3425137]
[1752580459590,0.2495,2978.7,2978.6,8.7925137]
[1752580459910,0.2495,2978.7,2978.6,10.08644359]
[1752580460526,0.2495,2978.7,2978.6,10.63644359]
[1752580460804,0.2495,2978.7,2978.6,11.06434359]
[1752580461824,0.04,2978.9,2978.8,3.35705653]
[1752580461972,0.7971,2978.8,2978.7,8.47711415]
[1752580462174,0.7971,2978.8,2978.7,0.31337595]
[1752580462373,11.266,2978.8,2978.7,0.31337595]
[1752580462838,11.266,2978.8,2978.7,0.31333059]
[1752580463051,11.266,2978.8,2978.6,3.3572597]
[1752580463339,11.266,2978.8,2978.7,3.35716923]
[1752580463340,10.7971,2978.8,2978.7,3.35716923]
[1752580463496,10.5671,2978.8,2978.7,3.35716923]
[1752580463701,0.04,2978.9,2978.8,3.35705653]
[1752580465136,0.04,2978.9,2978.8,3.67028559]
[1752580465802,0.04,2978.9,2978.8,3.70385615]
[1752580466203,0.04,2978.9,2978.8,3.67028559]
[1752580468141,0.5089,2978.9,2978.8,3.67028559]
[1752580468446,0.04,2978.9,2978.8,8.78928559]
[1752580468911,0.5089,2978.9,2978.8,8.78928559]
[1752580470066,0.04,2978.9,2978.8,8.78928559]
[1752580470240,0.04,2978.9,2978.8,10.3396588]
[1752580471868,0.04,2978.9,2978.8,3.67028559]
[1752580472026,0.04,2978.9,2978.8,8.78828559]
[1752580472361,0.04,2978.9,2978.8,3.67025922]
[1752580472362,0.4992,2978.9,2978.8,3.67025922]
[1752580472660,0.4992,2978.9,2978.8,8.78925922]
[1752580473275,0.04,2978.9,2978.8,8.78925922]
[1752580473487,0.4992,2978.9,2978.8,3.67025922]
[1752580473693,0.4992,2978.9,2978.8,8.78925922]
[1752580473694,1.2616,2978.9,2978.8,8.78925922]
[1752580474385,1.2616,2978.9,2978.8,0.31320269]
[1752580474535,11.2616,2978.9,2978.8,0.31320269]
[1752580474868,11.2616,2978.9,2977.9,8.4770204]
[1752580474869,0.8254,2978.7,2977.9,8.4770204]
[1752580475049,0.8254,2978.7,2978.3,3.35755166]
[1752580475050,10.4592,2978.6,2978.3,3.35755166]
[1752580475251,0.4592,2978.5,2978.3,3.35755166]
[1752580475590,0.4592,2978.5,2978.1,8.4808212]
[1752580475591,1.2236,2978.4,2978.0,8.48088724]
[1752580475886,10.20604054,2978.3,2977.9,5.122]
[1752580476082,9.74684054,2978.3,2978.2,3.35773285]
[1752580476439,0.7644,2978.4,2978.3,3.35762011]
[1752580476675,1.2236,2978.4,2978.3,3.35762011]
[1752580478354,1.2236,2978.4,2978.2,3.35767017]
[1752580478555,1.2236,2978.4,2978.1,3.35781163]
[1752580478556,0.4592,2978.3,2978.1,3.35781163]
[1752580478888,0.4592,2978.3,2978.2,3.35773285]
[1752580479083,0.4592,2978.3,2978.1,3.35778408]
[1752580479450,0.4592,2978.3,2977.9,5.124]
[1752580479657,0.8165,2978.2,2977.9,3.35799233]
[1752580479855,0.8165,2978.2,2977.7,5.125]
[1752580479856,0.4592,2978.1,2977.8,3.35813712]
[1752580480114,0.8165,2977.9,2977.8,3.35813712]
[1752580480401,1.2757,2977.9,2977.7,3.35823469]
[1752580480711,0.8165,2977.9,2977.7,3.35827476]
[1752580480887,10.8165,2977.9,2977.6,3.35835994]
[1752580481202,0.4592,2977.8,2977.7,3.35826175]
[1752580481363,0.4592,2977.8,2977.6,3.35837172]
[1752580481963,0.4592,2977.8,2977.7,3.35829667]
[1752580484602,0.4592,2977.8,2977.5,3.35949856]
[1752580484968,0.8165,2977.9,2977.8,3.35818389]
[1752580485173,5.9425,2977.9,2977.8,3.35818389]
[1752580485603,6.4017,2977.9,2977.8,3.35818389]
[1752580486204,6.4017,2977.9,2977.7,3.35824979]
[1752580486407,0.4592,2977.8,2977.7,3.35824979]
[1752580488998,6.96413189,2977.8,2977.7,3.35824979]
[1752580489204,11.62693189,2977.8,2977.5,0.001]
[1752580489390,1.2487,2977.7,2977.6,3.35838221]
[1752580491423,5.122,2978.0,2977.9,3.35807112]
[1752580491424,0.7895,2978.0,2977.9,3.35807112]
[1752580491592,11.2656,2978.2,2978.1,3.3578456]
[1752580492732,6.50493189,2978.3,2978.2,3.35773285]
[1752580492933,6.50493189,2978.3,2978.0,8.47895627]
[1752580492934,6.96413189,2978.3,2978.0,8.47895627]
[1752580493143,0.4592,2978.2,2978.0,3.35795627]
[1752580493302,0.4592,2978.2,2978.1,3.3578456]
[1752580493502,6.96413189,2978.2,2978.1,3.3578456]
[1752580495807,12.89253189,2978.4,2978.3,3.35762011]
[1752580496557,7.77053189,2978.4,2978.3,3.35762011]
[1752580498311,6.50493189,2978.4,2978.3,3.35762011]
[1752580498764,10.8168,2978.6,2978.5,3.35739466]
[1752580498916,11.276,2978.6,2978.5,3.35739466]
[1752580499426,0.042,2978.9,2978.7,3.35716923]
[1752580499427,22.91363189,2978.9,2978.7,3.35716923]
[1752580499609,17.35113189,2978.9,2978.8,3.35705653]
[1752580499933,7.35113189,2978.9,2978.8,3.35705653]
[1752580500139,10.8462,2978.9,2978.8,3.35705653]
[1752580500333,0.042,2978.9,2978.8,3.35705653]
[1752580501164,0.042,2978.9,2978.8,5.03814967]
[1752580501446,0.042,2978.9,2978.8,5.78387911]
[1752580503484,0.042,2978.9,2978.8,5.31977911]
[1752580503992,0.042,2978.9,2978.8,5.78387911]
[1752580504678,0.042,2978.9,2978.8,5.31977911]
[1752580505869,0.042,2978.9,2978.8,10.43677911]
[1752580508911,0.042,2978.9,2978.8,10.43377911]
[1752580509518,1.2918,2978.9,2978.8,3.35705653]
[1752580509816,0.8483,2978.9,2978.8,3.35705653]
[1752580510024,0.042,2978.9,2978.8,8.47805653]
[1752580510315,0.042,2978.9,2978.8,8.79160251]
[1752580510611,1e-08,2978.9,2978.8,9.61400251]
[1752580510818,1e-08,2978.9,2978.8,11.37521874]
[1752580511514,1e-08,2978.9,2978.8,10.91102321]
[1752580512026,1e-08,2978.9,2978.8,10.91102276]
[1752580512675,1e-08,2978.9,2978.8,10.08862276]
[1752580513831,1e-08,2978.9,2978.8,10.55272276]
[1752580514742,1e-08,2978.9,2978.8,10.55254623]
[1752580515988,1e-08,2978.9,2978.8,5.43154623]
[1752580516190,1e-08,2978.9,2978.8,10.55254623]
[1752580517431,1e-08,2978.9,2978.8,10.55243884]
[1752580520333,0.44350001,2978.9,2978.8,8.78922261]
[1752580520521,1e-08,2978.9,2978.8,8.78927114]
[1752580520891,1e-08,2978.9,2978.8,10.07367114]
[1752580521931,1e-08,2978.9,2978.8,10.62367114]
[1752580522513,0.4435,2979.5,2979.4,3.35638047]
[1752580522709,0.4435,2979.5,2979.4,3.66959508]
[1752580523240,0.4435,2979.7,2979.6,3.35615518]
[1752580523445,0.04,2979.9,2979.7,3.35604255]
[1752580523599,0.04,2979.9,2979.8,8.78514453]
[1752580524312,0.4835,2979.9,2979.8,8.78514453]
[1752580526134,0.04,2979.9,2979.8,8.78514453]
[1752580526334,0.4835,2979.9,2979.8,8.78514453]
[1752580526503,0.4835,2979.9,2979.8,8.78534602]
[1752580526940,0.4835,2979.9,2979.8,8.78534595]
[1752580528242,0.4835,2979.9,2979.8,3.66934595]
[1752580528546,1.94165156,2979.9,2979.8,3.66934595]
[1752580529439,1.94165156,2979.9,2979.8,3.35592992]
[1752580530045,0.8003,2979.9,2979.8,3.35592992]
[1752580530340,1.2324,2979.9,2979.8,3.35592992]
[1752580530741,0.04,2979.9,2979.8,3.35592992]
[1752580530901,0.04,2979.9,2979.8,8.47292992]
[1752580531353,6.26841354,2980.6,2979.8,8.47292992]
[1752580531354,0.2495,2980.6,2980.5,3.35514175]
[1752580531502,0.6816,2980.6,2980.5,3.35514175]
[1752580532232,0.2495,2980.6,2980.5,4.02618045]
[1752580534842,0.2495,2980.6,2980.5,9.14618045]
[1752580535178,0.2495,2980.6,2980.5,3.35514175]
[1752580535350,0.2495,2980.6,2980.5,8.47314175]
[1752580535546,0.2495,2980.6,2980.5,3.35514175]
[1752580535731,0.2495,2980.6,2980.5,8.47314175]
[1752580536654,0.2495,2980.6,2980.5,3.35514175]
[1752580537082,0.6816,2980.6,2980.5,3.35514175]
[1752580537270,0.6816,2980.6,2980.5,3.66859117]
[1752580537466,0.2495,2980.6,2980.5,3.66859117]
[1752580537655,0.2495,2980.6,2980.5,9.48897482]
[1752580538838,1e-08,2980.7,2980.6,4.14622918]
[1752580539069,1e-08,2980.7,2980.6,4.49322889]
[1752580539275,1e-08,2980.7,2980.6,4.96742889]
[1752580539840,1e-08,2980.9,2980.8,3.90480407]
[1752580540080,1e-08,2980.9,2980.8,9.33525349]
[1752580540382,1e-08,2980.9,2980.8,9.80945349]
[1752580540939,1e-08,2980.9,2980.8,10.56725349]
[1752580541379,1e-08,2980.9,2980.8,10.09405349]
[1752580541581,1e-08,2980.9,2980.8,11.57931312]
[1752580541793,1e-08,2980.9,2980.8,12.05351312]